Cogmind - Beta 13 @@@ ROGUE MODE // 2024.07.24 @ 15:06:12 Player: Wonda Result: Destroyed by K8-6H1(R) with Subdweller Laser Performance ------------- Evolutions (0) 0 Regions Visited (3) 600 Robots Destroyed (29) 145 Value Destroyed (514) 514 Prototype IDs (0) 0 Alien Tech Used (0) 0 Bonus (0) 0 TOTAL SCORE: 1259 Bonus ------- None Cogmind --------- Core Integrity 0/250 Matter 450/450 Energy 156/160 System Corruption 0% Temperature Cool (8) Movement Walking (190) Ox1 Location -10/Subcaves Parts ------- > --- POWER (1) -------- Light Nuclear Core > --- PROPULSION (2) --- Aluminum Leg Aluminum Leg > --- UTILITY (2) ------ Large Storage Unit Compact Matter Pod > --- WEAPON (2) ------- Light Assault Rifle Light Assault Rifle > --- INVENTORY (15) --- Light Ion Engine Light Ion Engine Light Ion Engine Heat Sink Hacking Suite Peak State ------------ > --- POWER ------------ Light Nuclear Core > --- PROPULSION ------- Aluminum Leg Aluminum Leg > --- UTILITY ---------- Small Storage Unit Compact Matter Pod > --- WEAPON ----------- Light Assault Rifle Light Assault Rifle > --- INVENTORY -------- Light Ion Engine Light Ion Engine Light Ion Engine Heat Sink Hacking Suite [Rating: 11] Favorites ----------- Power Light Nuclear Core Engine Ion Engine Power Core Light Nuclear Core Propulsion Light Treads Treads Light Treads Leg Aluminum Leg Utility Small Storage Unit Device Structural Scanner Storage Small Storage Unit Processor Targeting Computer Weapon Light Assault Rifle Ballistic Gun Light Assault Rifle Build | -11 -10 -10 -10 ------- Run | Yrd Mat Min Sub Slots Evolved . | . . . . Power . | . . . . Propulsion . | . . . . Utility . | . . . . Weapon . | . . . . Parts Attached 23 | 6 4 13 . Power 4 | 1 1 2 . Engine 3 | 1 1 1 . Core 1 | . . 1 . Reactor . | . . . . Propulsion 4 | 2 . 2 . Treads 2 | 2 . . . Leg 2 | . . 2 . Wheel . | . . . . Hover . | . . . . Flight . | . . . . Utility 8 | 1 3 4 . Device 2 | . 2 . . Storage 5 | 1 . 4 . Processor 1 | . 1 . . Hackware . | . . . . Protection . | . . . . Artifact . | . . . . Weapon 7 | 2 . 5 . Energy Gun . | . . . . Energy Cannon . | . . . . Ballistic Gun 7 | 2 . 5 . Ballistic Cannon . | . . . . Launcher . | . . . . Special Weapon . | . . . . Impact Weapon . | . . . . Slashing Weapon . | . . . . Piercing Weapon . | . . . . Special Melee Weapon . | . . . . Unidentified Prototypes . | . . . . Parts Lost 4 | . . 4 . Power . | . . . . Propulsion 2 | . . 2 . Utility 1 | . . 1 . Weapon 1 | . . 1 . Highest Loss Streak 2 | . . 2 . To Critical Strikes . | . . . . Average Slot Usage (%) 96 | . 97 95 100 Engine 7 | . 14 3 . Core 6 | . . 10 14 Treads 14 | . 28 4 . Leg 11 | . . 18 28 Device 5 | . 8 3 . Storage 20 | . 14 24 28 Processor 1 | . 3 . . Ballistic Gun 27 | . 28 27 28 Naked Turns . | . . . . Heaviest Build 28 | 11 14 28 28 Greatest Support 40 | 40 40 40 20 Greatest Overweight (x) 4 | . . 4 1 Average Overweight (x) . | . . . 1 Largest Inventory Capacity 20 | 8 8 20 15 Average Capacity 10 | 6 8 12 15 Most Carried 7 | 1 4 7 5 Average Carried 3 | . 2 5 5 Final Capacity 15 | 8 8 15 15 Final Carried 5 | 1 4 5 5 Class Distribution -------------------- 60% | Mutant 39% | Scavenger-Mutant Dominant Class ---------------- Mutant | -10/Materials Scavenger-Mutant | -10/Mines Scavenger-Mutant | -10/Subcaves Resources | -11 -10 -10 -10 ----------- Run | Yrd Mat Min Sub Matter Collected 641 | 210 236 195 . Remotely . | . . . . Salvage Created 654 | . 309 345 . Parts 53 | . 23 30 . Haulers Intercepted . | . . . . Recyclers Shooed . | . . . . Parts Field Recycled . | . . . . Retrieved Matter . | . . . . Parts Self-Destructed . | . . . . Prevented . | . . . . Kills | -11 -10 -10 -10 ------- Run | Yrd Mat Min Sub Combat Hostiles Destroyed 28 | . 12 16 . Guns 28 | . 12 16 . Classes Destroyed 3 | . 3 . . Operator 1 | . 1 . . Swarmer 20 | . 8 12 . Grunt 8 | . 4 4 . Best Kill Streak 6 | . 6 6 . Combat Bots Only 6 | . 6 6 . Max Kills in Single Turn 1 | . 1 1 . Gunslinging . | . . . . Exploded . | . . . . Melee . | . . . . Uniques/NPCs Destroyed . | . . . . Combat | -11 -10 -10 -10 -------- Run | Yrd Mat Min Sub Hostile Shots Fired 143 | . 49 85 9 Missed 37 | . 9 26 2 Damage Taken 1129 | . 357 627 145 Core 251 | . 39 147 65 Absorbed by Shields . | . . . . Core Remaining (%) 100 | 100 . . . Volleys Fired 78 | . 38 40 . Largest 2 | . 2 2 . Hottest 40 | . 40 40 . Shots Fired 153 | . 76 77 . Gun 153 | . 76 77 . Cannon . | . . . . Launcher . | . . . . Special . | . . . . Kinetic 153 | . 76 77 . Thermal . | . . . . Explosive . | . . . . Electromagnetic . | . . . . Robot Hit Streak 23 | . 12 23 . Robot Miss Streak 2 | . 2 2 . Penetration Max . | . . . . Secondary Targets 3 | . 3 . . Max Gunslinging Chain 1 | . 1 . . Shots Hit Robots 105 | . 49 56 . Core Hits 54 | . 25 29 . Critical Kills . | . . . . Critical Parts Destroyed . | . . . . Critical Strikes . | . . . . Melee Attacks . | . . . . Impact . | . . . . Slashing . | . . . . Piercing . | . . . . Sneak Attacks . | . . . . Combat Hostiles . | . . . . Follow-up Attacks . | . . . . Damage Inflicted 1048 | . 539 509 . Guns 1012 | . 523 489 . Cannons . | . . . . Explosions . | . . . . Melee . | . . . . Ramming 36 | . 16 20 . Kinetic 1012 | . 523 489 . Thermal . | . . . . Explosive . | . . . . Electromagnetic . | . . . . Impact . | . . . . Slashing . | . . . . Piercing . | . . . . Highest Corruption . | . . . . Average Corruption . | . . . . Corruption Purged . | . . . . Corruption Blocked . | . . . . Overload Shots . | . . . . Overflow Damage . | . . . . Projectiles . | . . . . Explosions . | . . . . Melee . | . . . . Knockbacks 1 | . . 1 . Impact 1 | . . 1 . Kinetic . | . . . . Secondary . | . . . . Self-Inflicted Damage 1 | . . 1 . Shots . | . . . . Rammed 8 | . 2 6 . Targets Rammed 12 | . 2 10 . Kicked 4 | . . 4 . Crushed . | . . . . Highest Temperature 30 | . 12 30 . Average Temperature 8 | . 7 9 . Received Heat Transfer 321 | . 84 195 42 Siege Activations . | . . . . Robots Corrupted . | . . . . Combat Hostiles . | . . . . Parts Fried . | . . . . Impact Corruptions . | . . . . Robots Melted . | . . . . Combat Hostiles . | . . . . Parts Melted . | . . . . Heat Transferred . | . . . . Parts Sabotaged . | . . . . Parts Stolen . | . . . . Parts Stripped . | . . . . Power Chain Reactions . | . . . . Alert | -11 -10 -10 -10 ------- Run | Yrd Mat Min Sub Peak Influence 267 | . 218 267 . Initial 27 | . . 27 . Average 103 | . 102 109 . Maximum Alert Level 1 | . 1 1 . Low Security (%) 79 | 100 82 75 . Level 1 20 | . 17 24 . Level 2 . | . . . . Level 3 . | . . . . Level 4 . | . . . . Level 5 . | . . . . High Security . | . . . . Max Security . | . . . . Squads Dispatched 3 | . 3 . . Investigation 1 | . 1 . . Extermination . | . . . . Reinforcement 2 | . 2 . . Assault . | . . . . Garrison . | . . . . Intercept . | . . . . Searches Triggered . | . . . . Construction Impeded . | . . . . Haulers Reinforced . | . . . . Active Scanning Responses . | . . . . Cargo Convoy Interrupts . | . . . . Stealth | -11 -10 -10 -10 --------- Run | Yrd Mat Min Sub Distress Signals 1 | . 1 . . Communications Jammed . | . . . . Distress Signals . | . . . . Times Spotted 46 | . 27 17 2 Peak Tracking Total 6 | . 3 6 2 Tactical Retreats 3 | . 2 1 . Traps | -11 -10 -10 -10 ------- Run | Yrd Mat Min Sub Traps Triggered 1 | . 1 . . Indirectly . | . . . . Trap Hack Attempts . | . . . . Triggered . | . . . . Disarmed . | . . . . Reprogrammed . | . . . . Reused . | . . . . Traps Extracted . | . . . . Installed . | . . . . Triggered . | . . . . Machines | -11 -10 -10 -10 ---------- Run | Yrd Mat Min Sub Machines Disabled . | . . . . Max in Single Turn . | . . . . Machines Repaired . | . . . . Machines Dismantled . | . . . . Machines Sabotaged . | . . . . Overloaded Fab Kills . | . . . . Hacking | -11 -10 -10 -10 --------- Run | Yrd Mat Min Sub Machines Accessed 5 | . 4 1 . Terminals 5 | . 4 1 . Fabricators . | . . . . Repair Stations . | . . . . Recycling Units . | . . . . Scanalyzers . | . . . . Garrison Access . | . . . . Total Hacks 13 | . 12 1 . Successful 6 | . 6 . . Failed 7 | . 6 1 . Catastrophic 2 | . 1 1 . Database Lockouts . | . . . . Manual 13 | . 12 1 . Terminals 13 | . 12 1 . Fabricators . | . . . . Repair Stations . | . . . . Recycling Units . | . . . . Scanalyzers . | . . . . Garrison Access . | . . . . Terminal Hacks 6 | . 6 . . Robot Analysis 3 | . 3 . . Dispatch Records 1 | . 1 . . Hauler Manifests 1 | . 1 . . Registered Components 1 | . 1 . . Fabricator Hacks . | . . . . Repair Station Hacks . | . . . . Recycling Unit Hacks . | . . . . Scanalyzer . | . . . . Garrison Access Hacks . | . . . . Unauthorized Hacks . | . . . . Terminals . | . . . . Fabricators . | . . . . Repair Stations . | . . . . Recycling Units . | . . . . Scanalyzers . | . . . . Garrison Access . | . . . . Data Cores Recovered . | . . . . Used . | . . . . Hacking Detections 4 | . 3 1 . Full Trace Events . | . . . . Feedback Events . | . . . . Feedback Blocked . | . . . . Robot Schematics Acquired . | . . . . Robots Built . | . . . . Authchips . | . . . . Time . | . . . . Total Robot Build Rating . | . . . . Part Schematics Acquired . | . . . . Parts Built . | . . . . Authchips . | . . . . Time . | . . . . Total Part Build Rating . | . . . . Parts Repaired . | . . . . Time . | . . . . Parts Recycled . | . . . . Recycled Matter . | . . . . Retrieved Matter . | . . . . Retrieved Components . | . . . . Parts Scanalyzed . | . . . . Part Schematics Acquired . | . . . . Parts Damaged . | . . . . Bothacking | -11 -10 -10 -10 ------------ Run | Yrd Mat Min Sub Used RIF Installer . | . . . . Robots Hacked . | . . . . Non-combat . | . . . . Combat . | . . . . Robot Hacks Applied . | . . . . Relay Couplers Released . | . . . . Fabnet Peak Effective % . | . . . . Robots Rewired . | . . . . Allies Hacked . | . . . . Hacks Repelled . | . . . . Allies | -11 -10 -10 -10 -------- Run | Yrd Mat Min Sub Total Allies . | . . . . Largest Group . | . . . . Highest-Rated Group . | . . . . Highest-Rated Ally . | . . . . Total Orders . | . . . . Ally Attacks . | . . . . Total Damage . | . . . . Kills . | . . . . Allies Corrupted . | . . . . Allies Melted . | . . . . Intel | -11 -10 -10 -10 ------- Run | Yrd Mat Min Sub Robot Analysis Total 3 | . 3 . . Derelict Logs Recovered 1 | . . 1 . Drone Launches . | . . . . Drone Recoveries . | . . . . Exploration | -11 -10 -10 -10 ------------- Run | Yrd Mat Min Sub Turns Passed 2409 | 79 928 1375 27 Spaces Moved 1227 | 44 460 708 15 Core 5 | 1 . 4 . Treads 711 | 43 460 208 . Legs 511 | . . 496 15 Wheels . | . . . . Hover . | . . . . Flight . | . . . . Fastest Speed 50 | 50 160 120 190 Average Speed 167 | 157 160 171 190 Slowest Speed 250 | 160 160 250 190 Overloaded Moves . | . . . . Propulsion Burnouts . | . . . . Robots Hopped . | . . . . Cave-ins Triggered . | . . . . Exploration Rate (%) 39 | 4 53 98 2 Regions Visited 3 Branch Regions 2 Pre-discovered Areas . | . . . . Known Exits Taken . | . . . . Unknown Exits Taken 3 | 1 1 1 . Scrap Searched 1 | . . 1 . Spaces Dug . | . . . . Terrain Destroyed . | . . . . Melee . | . . . . Projectile . | . . . . AOE . | . . . . Terrain Rammed . | . . . . Walls Destroyed . | . . . . Machines Disabled . | . . . . Actions | -11 -10 -10 -10 --------- Run | Yrd Mat Min Sub Total 1444 | 51 583 795 15 Wait 89 | 1 74 14 . Move 1224 | 43 459 707 15 Hop . | . . . . Pick Up 6 | 1 3 2 . Fast Attach 12 | 6 2 4 . Attach 3 | . 1 2 . Detach 4 | . 2 2 . Swap 8 | . 1 7 . Drop 8 | . 1 7 . Fire 78 | . 38 40 . Melee . | . . . . Ram 3 | . . 3 . Kick 4 | . . 4 . Crush 5 | . 2 3 . Escape Stasis . | . . . . Rewire . | . . . . Trap . | . . . . Miscellaneous . | . . . . Route ------- -11/Scrapyard -10/Materials (discovered 3 exits: [*Mat x2] / *Min) -10/Mines (discovered 3 exits: [*Mat x2] / [*Sub]) -10/Subcaves History --------- Turn | Location | Event 2 | -11/Scrapyard | Met Revision 17 19 | -11/Scrapyard | Discovered new exit (range 16) 80 | -11/Scrapyard | Entered Materials 265 | -10/Materials | Discovered new exit (range 8) 311 | -10/Materials | Build established: Mutant 422 | -10/Materials | Discovered new exit (range 13) 691 | -10/Materials | Discovered new exit (range 15) 1008 | -10/Materials | Entered Mines 1012 | -10/Mines | Discovered new exit (range 14) 1194 | -10/Mines | Learned 4 Materials zone layouts 1294 | -10/Mines | Discovered new exit (range 10) 1427 | -10/Mines | Core integrity fell below 50% 1763 | -10/Mines | Build established: Scavenger-Mutant 2370 | -10/Mines | Discovered new exit (range 9) 2383 | -10/Mines | Entered Subcaves 2392 | -10/Subcaves | Ambushed by Subdwellers from Twisted Machinery 2394 | -10/Subcaves | Core integrity fell below 20% 2410 | -10/Subcaves | Destroyed by K8-6H1(R) with Subdweller Laser Last Messages --------------- 02015_ Found Hcp. Matter Pod. 02015_ Found Hcp. Storage Unit. 02015_ Found Targeting Computer. 02015_ Found 26 Matter. 02029_ Dropped Hcp. Storage Unit. 02030_ Acquired 20 matter. 02059_ K-01 Serf collects debris. 02262_ S-10 Pest destroyed. 02267_ Acquired 4 matter. 02276_ Kicked T-07 Excavator. 02290_ Kicked K-01 Serf. 02307_ Kicked R-06 Scavenger out of the way. 02368_ T-07 Excavator is excavating. 02370_ EXIT=FOUND 02383_ U-05 Engineer lays Concrete. LOCATION=UNKNOWN AMBIENT_HEAT=-10 GOAL=ESCAPE 02392_ K8-6H1(R) emerges from the Twisted Machinery. Map ----- +----------------------------------------------------+ | ?????????????????????????????????????????????????? | | ?????????????????????????????????????????????????? | | ?????????????????????????????????????????????????? | | ?????????????????????????????????????????????????? | | ?????????????????????????????????????????????????? | | ?????????????????????????????????????????????????? | | ?????????????????????????????????????????????????? | | ?????????????????????????????????????????????????? | | ?????????????????????????????????????????????????? | | ?????????????????????????????????????????????????? | | ?????????????????????????????????????????????????? | | ?????????????????????????????????????????????????? | | ?????????????????????????????????????????????????? | | ?????????????????????????????????????????????????? | | ?????????????????????????????????????????????????? | | ?????????????????????????????????????????????????? | | ?????????????????????????????????????????????????? | | ??????????????????????????##?????????????????????? | | ?????????????????????????? #?????##??????????????? | | ?????????????????????????? #???? ???????????????? | | ?????????????????????????? ??? ????????????????? | | ?????????????????????????? ### ??????????????????? | | ????????????????????????## # ???????????????????? | | ????????????????????????# ????????????????????? | | ????????????????????????# #?????????????????????? | | ???????????????????????##@####???? #????????????? | | ??????????????????????## ### ##???????????? | | ??????????????????????# #???????????? | | ??????????????????????## #?????????? | | ???????????????????????# ## #?????????? | | ?????????????####?###### #?#### #?????????? | | ???????? #" #"# ##R #?????? #?????????? | | ????????? "" R #???????? ??????????? | | ????????? "" #????????? ???????????? | | ????????? "" # # ## #?????????????????????? | | ?????????????????###?## #????????????????????? | | ??????????????????????#######????????????????????? | | ?????????????????????????????????????????????????? | | ?????????????????????????????????????????????????? | | ?????????????????????????????????????????????????? | | ?????????????????????????????????????????????????? | | ?????????????????????????????????????????????????? | | ?????????????????????????????????????????????????? | | ?????????????????????????????????????????????????? | | ?????????????????????????????????????????????????? | | ?????????????????????????????????????????????????? | | ?????????????????????????????????????????????????? | | ?????????????????????????????????????????????????? | | ?????????????????????????????????????????????????? | | ?????????????????????????????????????????????????? | +----------------------------------------------------+ Best States ------------- Heat Dissipation 35 Energy Generation 14 Energy Capacity 250 Matter Stores 450 Matter Capacity 450 Sight Range 16 Terrain Scan Density 10 Evasion (%) 55 Targeting Accuracy 5 Recoil Reduction 2 Item Schematics ----------------- None Robot Schematics ------------------ None Fabricated ------------ Nothing Alien Tech Used ----------------- None Achievements -------------- root@ Challenges ------------ None Game ------ Seed AlertSpreadDissipator Manual? 0 Play Time 00:18:03 Cumulative 9.5 hours Start 2024.07.24 @ 14:47:55 End 2024.07.24 @ 15:06:12 Sessions 1 Manual Loads 0 Difficulty Rogue Special Mode None Game No. 17 Rogue 17 Adventurer 0 Explorer 0 Win Type - Total 0 Types 0/0/0/0/0/0/0/0/0 Lore% 12 Gallery% 12 Achievement% 14 Wizard Run 0 Options --------- Layout 1 ASCII 0 Keyboard 1 Movement Numpad Keybinds 0 Fullscreen 1 Font 16/SmallcapsGlow Map View 50x35 Zoom Use 0% Tactical HUD 1 Map Filters NONE Filters NONE Steam SD RUN: a8597781-7a39-4b22-b725-27c0858f1c51